[Event "Titled Tuesday Blitz May 23 Early 2023"]
[White "Leschinsky, Gary"]
[Black "Al-Tarboush, Ward"]
[WhiteFideId "30951321"]
[BlackFideId "7601450"]
[WhiteElo "1855"]
[BlackElo "2265"]
[Result "1-0"]
[Round "04"]
[TimeControl "180+2"]
[Date "2023.05.23"]
[WhiteClock "0:00:13"]
[BlackClock "0:00:33"]

1. d4 {[%clk 0:03:00]}  Nf6 {[%clk 0:02:59]} 2. c4 {[%clk 0:03:01]}  b6 {[%clk 0:02:59]} 3. Nc3 {[%clk 0:02:57]}  Bb7 {[%clk 0:02:57]} 4. f3 {[%clk 0:02:46]}  d5 {[%clk 0:02:57]} 5. cxd5 {[%clk 0:02:47]}  Nxd5 {[%clk 0:02:56]} 6. Nxd5 {[%clk 0:02:48]}  Qxd5 {[%clk 0:02:55]} 7. e4 {[%clk 0:02:49]}  Qd7 {[%clk 0:02:53]} 8. Be3 {[%clk 0:02:48]}  e5 {[%clk 0:02:48]} 9. dxe5 {[%clk 0:02:44]}  Bb4+ {[%clk 0:02:47]} 10. Kf2 {[%clk 0:02:44]}  O-O {[%clk 0:02:44]} 11. a3 {[%clk 0:02:28]}  Be7 {[%clk 0:02:39]} 12. Bc4 {[%clk 0:02:02]}  Rd8 {[%clk 0:02:29]} 13. Qxd7 {[%clk 0:01:58]}  Nxd7 {[%clk 0:02:30]} 14. e6 {[%clk 0:01:58]}  Ne5 {[%clk 0:02:31]} 15. exf7+ {[%clk 0:01:58]}  Kf8 {[%clk 0:02:31]} 16. Be2 {[%clk 0:01:54]}  Bf6 {[%clk 0:02:21]} 17. f4 {[%clk 0:01:40]}  Nxf7 {[%clk 0:02:21]} 18. e5 {[%clk 0:01:38]}  Bh4+ {[%clk 0:02:21]} 19. Kf1 {[%clk 0:01:29]}  Nh6 {[%clk 0:02:21]} 20. Bf3 {[%clk 0:01:21]}  Ba6+ {[%clk 0:02:20]} 21. Be2 {[%clk 0:01:20]}  Nf5 {[%clk 0:02:19]} 22. Bxa6 {[%clk 0:00:45]}  Nxe3+ {[%clk 0:02:17]} 23. Ke2 {[%clk 0:00:46]}  Nxg2 {[%clk 0:02:05]} 24. Nh3 {[%clk 0:00:44]}  Rd4 {[%clk 0:01:47]} 25. Bb7 {[%clk 0:00:33]}  Rad8 {[%clk 0:01:47]} 26. Bxg2 {[%clk 0:00:33]}  Rd2+ {[%clk 0:01:47]} 27. Kf3 {[%clk 0:00:34]}  R8d3+ {[%clk 0:01:44]} 28. Kg4 {[%clk 0:00:34]}  Rxg2+ {[%clk 0:01:39]} 29. Kxh4 {[%clk 0:00:34]}  h6 {[%clk 0:01:33]} 30. Rad1 {[%clk 0:00:26]}  Rb3 {[%clk 0:01:33]} 31. Rhg1 {[%clk 0:00:17]}  Rxh2 {[%clk 0:01:32]} 32. Rg3 {[%clk 0:00:18]}  g5+ {[%clk 0:01:28]} 33. fxg5 {[%clk 0:00:19]}  hxg5+ {[%clk 0:01:29]} 34. Kg4 {[%clk 0:00:19]}  Rxg3+ {[%clk 0:01:26]} 35. Kxg3 {[%clk 0:00:19]}  Rxb2 {[%clk 0:01:26]} 36. Nxg5 {[%clk 0:00:17]}  Rb3+ {[%clk 0:01:27]} 37. Kf4 {[%clk 0:00:18]}  Ke7 {[%clk 0:01:24]} 38. Rh1 {[%clk 0:00:17]}  Rxa3 {[%clk 0:01:22]} 39. Rh7+ {[%clk 0:00:17]}  Kd8 {[%clk 0:01:20]} 40. Kf5 {[%clk 0:00:17]}  Ra1 {[%clk 0:00:59]} 41. e6 {[%clk 0:00:17]}  Rf1+ {[%clk 0:00:57]} 42. Ke5 {[%clk 0:00:18]}  Re1+ {[%clk 0:00:57]} 43. Ne4 {[%clk 0:00:16]}  a5 {[%clk 0:00:54]} 44. Kd5 {[%clk 0:00:16]}  Rd1+ {[%clk 0:00:47]} 45. Kc6 {[%clk 0:00:16]}  Rc1+ {[%clk 0:00:47]} 46. Kb7 {[%clk 0:00:14]}  Rf1 {[%clk 0:00:37]} 47. Rd7+ {[%clk 0:00:10]}  Ke8 {[%clk 0:00:36]} 48. Rxc7 {[%clk 0:00:08]}  Re1 {[%clk 0:00:32]} 49. Nd6+ {[%clk 0:00:08]}  Kf8 {[%clk 0:00:32]} 50. Rf7+ {[%clk 0:00:08]}  Kg8 {[%clk 0:00:32]} 51. e7 {[%clk 0:00:06]}  a4 {[%clk 0:00:32]} 52. Rf8+ {[%clk 0:00:06]}  Kg7 {[%clk 0:00:33]} 53. e8=Q {[%clk 0:00:07]}  Rxe8 {[%clk 0:00:32]} 54. Rxe8 {[%clk 0:00:08]}  b5 {[%clk 0:00:32]} 55. Nxb5 {[%clk 0:00:08]}  Kf7 {[%clk 0:00:32]} 56. Re3 {[%clk 0:00:09]}  Kf6 {[%clk 0:00:32]} 57. Ra3 {[%clk 0:00:10]}  Ke5 {[%clk 0:00:32]} 58. Rxa4 {[%clk 0:00:11]}  Kd5 {[%clk 0:00:32]} 59. Kb6 {[%clk 0:00:11]}  Ke6 {[%clk 0:00:32]} 60. Ra6 {[%clk 0:00:12]}  Kd5 {[%clk 0:00:32]} 61. Ra7 {[%clk 0:00:13]}  Kc4 {[%clk 0:00:33]} 62. Rc7+ {[%clk 0:00:14]}  Kb4 {[%clk 0:00:33]} 63. Rc5 {[%clk 0:00:14]}  Ka4 {[%clk 0:00:33]} 64. Nd6 {[%clk 0:00:14]}  Kb4 {[%clk 0:00:33]} 65. Rb5+ {[%clk 0:00:13]}  Ka4 {[%clk 0:00:33]} 66. Kc5 {[%clk 0:00:14]}  Ka3 {[%clk 0:00:34]} 67. Rb4 {[%clk 0:00:14]}  Ka2 {[%clk 0:00:34]} 68. Kc4 {[%clk 0:00:15]}  Ka3 {[%clk 0:00:34]} 69. Kc3 {[%clk 0:00:15]}  Ka2 {[%clk 0:00:35]} 70. Rb3 {[%clk 0:00:13]}  Ka1 {[%clk 0:00:35]} 71. Kc2 {[%clk 0:00:13]}  Ka2 {[%clk 0:00:33]} 72. Rh3 {[%clk 0:00:13]} 1-0


[Site "https://www.chess.com"]

[Event "Titled Tuesday Blitz May 23 Early 2023"]
[White "Fiorito, Joaquin"]
[Black "Ruge, Edison"]
[WhiteFideId "180173"]
[BlackFideId "4401000"]
[WhiteElo "2157"]
[BlackElo "2175"]
[Result "1-0"]
[Round "04"]
[TimeControl "180+2"]
[Date "2023.05.23"]
[WhiteClock "0:02:44"]
[BlackClock "0:02:33"]

1. d4 {[%clk 0:03:00]}  d5 {[%clk 0:02:55]} 2. c4 {[%clk 0:03:01]}  e5 {[%clk 0:02:54]} 3. dxe5 {[%clk 0:02:59]}  d4 {[%clk 0:02:54]} 4. Nf3 {[%clk 0:02:57]}  Nc6 {[%clk 0:02:54]} 5. a3 {[%clk 0:02:57]}  Bg4 {[%clk 0:02:54]} 6. Bf4 {[%clk 0:02:49]}  Bxf3 {[%clk 0:02:51]} 7. exf3 {[%clk 0:02:49]}  Nge7 {[%clk 0:02:52]} 8. Bd3 {[%clk 0:02:48]}  Ng6 {[%clk 0:02:49]} 9. Bxg6 {[%clk 0:02:49]}  hxg6 {[%clk 0:02:44]} 10. b4 {[%clk 0:02:45]}  Nxb4 {[%clk 0:02:33]} 11. axb4 {[%clk 0:02:44]} 1-0


[Site "https://www.chess.com"]

[Event "Titled Tuesday Blitz May 23 Early 2023"]
[White "Kushko, Dmitriy"]
[Black "Ramirez Vido, Robert Yorisan"]
[WhiteFideId "14162261"]
[BlackFideId "3513823"]
[WhiteElo "2230"]
[BlackElo "2440"]
[Result "1-0"]
[Round "04"]
[TimeControl "180+2"]
[Date "2023.05.23"]
[WhiteClock "0:00:04"]
[BlackClock "0:00:00"]

1. f4 {[%clk 0:03:00]}  d5 {[%clk 0:02:57]} 2. Nf3 {[%clk 0:03:01]}  Nf6 {[%clk 0:02:56]} 3. g3 {[%clk 0:03:01]}  Bg4 {[%clk 0:02:54]} 4. Bg2 {[%clk 0:03:01]}  Bxf3 {[%clk 0:02:54]} 5. Bxf3 {[%clk 0:03:01]}  c6 {[%clk 0:02:55]} 6. O-O {[%clk 0:03:01]}  Nbd7 {[%clk 0:02:54]} 7. d4 {[%clk 0:03:01]}  e6 {[%clk 0:02:51]} 8. c3 {[%clk 0:02:54]}  h5 {[%clk 0:02:50]} 9. Nd2 {[%clk 0:02:52]}  Qb6 {[%clk 0:02:42]} 10. Qb3 {[%clk 0:02:45]}  Qc7 {[%clk 0:02:33]} 11. e4 {[%clk 0:02:44]}  dxe4 {[%clk 0:02:31]} 12. Nxe4 {[%clk 0:02:44]}  Nxe4 {[%clk 0:02:31]} 13. Bxe4 {[%clk 0:02:44]}  Nf6 {[%clk 0:02:31]} 14. Bf3 {[%clk 0:02:44]}  Bd6 {[%clk 0:02:29]} 15. Be3 {[%clk 0:02:41]}  h4 {[%clk 0:02:22]} 16. c4 {[%clk 0:02:39]}  hxg3 {[%clk 0:02:15]} 17. hxg3 {[%clk 0:02:39]}  g5 {[%clk 0:01:20]} 18. c5 {[%clk 0:01:54]}  Be7 {[%clk 0:01:19]} 19. Kg2 {[%clk 0:01:47]}  g4 {[%clk 0:01:12]} 20. Be2 {[%clk 0:01:46]}  Nd5 {[%clk 0:01:08]} 21. Bf2 {[%clk 0:01:34]}  f5 {[%clk 0:01:08]} 22. Rh1 {[%clk 0:01:27]}  O-O-O {[%clk 0:01:08]} 23. Rae1 {[%clk 0:01:24]}  Bf6 {[%clk 0:00:35]} 24. Bc4 {[%clk 0:01:23]}  Qf7 {[%clk 0:00:29]} 25. Qd1 {[%clk 0:01:10]}  Kd7 {[%clk 0:00:21]} 26. b4 {[%clk 0:00:51]}  Qg7 {[%clk 0:00:13]} 27. b5 {[%clk 0:00:46]}  Rxh1 {[%clk 0:00:13]} 28. Rxh1 {[%clk 0:00:45]}  Rh8 {[%clk 0:00:13]} 29. bxc6+ {[%clk 0:00:38]}  bxc6 {[%clk 0:00:13]} 30. Qd2 {[%clk 0:00:12]}  Rxh1 {[%clk 0:00:13]} 31. Kxh1 {[%clk 0:00:13]}  Qh7+ {[%clk 0:00:13]} 32. Kg1 {[%clk 0:00:12]}  Qh8 {[%clk 0:00:12]} 33. Qb2 {[%clk 0:00:10]}  Qd8 {[%clk 0:00:07]} 34. Be1 {[%clk 0:00:09]}  Qc7 {[%clk 0:00:06]} 35. a4 {[%clk 0:00:08]}  Ne3 {[%clk 0:00:05]} 36. Ba2 {[%clk 0:00:07]}  Nd5 {[%clk 0:00:03]} 37. a5 {[%clk 0:00:07]}  Qc8 {[%clk 0:00:02]} 38. Bc4 {[%clk 0:00:06]}  Qc7 {[%clk 0:00:02]} 39. a6 {[%clk 0:00:07]}  Ne3 {[%clk 0:00:02]} 40. Be2 {[%clk 0:00:05]}  Nd5 {[%clk 0:00:03]} 41. Qb7 {[%clk 0:00:05]}  Qxb7 {[%clk 0:00:03]} 42. axb7 {[%clk 0:00:06]}  Kc7 {[%clk 0:00:03]} 43. Ba6 {[%clk 0:00:06]}  Kb8 {[%clk 0:00:04]} 44. Bf2 {[%clk 0:00:04]}  Nc7 {[%clk 0:00:03]} 45. Bc4 {[%clk 0:00:04]}  Kxb7 {[%clk 0:00:03]} 46. Kf1 {[%clk 0:00:04]}  a5 {[%clk 0:00:03]} 47. Ke2 {[%clk 0:00:04]}  Nd5 {[%clk 0:00:03]} 48. Kd3 {[%clk 0:00:04]}  a4 {[%clk 0:00:04]} 49. Be1 {[%clk 0:00:04]}  a3 {[%clk 0:00:04]} 50. Ba2 {[%clk 0:00:04]}  Ka6 {[%clk 0:00:03]} 51. Bd2 {[%clk 0:00:04]}  Kb5 {[%clk 0:00:03]} 52. Bb3 {[%clk 0:00:03]}  Nc7 {[%clk 0:00:02]} 53. Bc4+ {[%clk 0:00:03]}  Ka4 {[%clk 0:00:02]} 54. Bc3 {[%clk 0:00:03]}  Nb5 {[%clk 0:00:01]} 55. Bxe6 {[%clk 0:00:03]}  Nxc3 {[%clk 0:00:00]} 56. Kxc3 {[%clk 0:00:04]} 1-0


[Site "https://www.chess.com"]

[Event "Titled Tuesday Blitz May 23 Early 2023"]
[White "Gatterer, Florian"]
[Black "Srihari L R"]
[WhiteFideId "811688"]
[BlackFideId "46617116"]
[WhiteElo "2221"]
[BlackElo "2334"]
[Result "0-1"]
[Round "04"]
[TimeControl "180+2"]
[Date "2023.05.23"]
[WhiteClock "0:00:04"]
[BlackClock "0:01:14"]

1. b3 {[%clk 0:03:00]}  a5 {[%clk 0:02:59]} 2. Bb2 {[%clk 0:03:00]}  a4 {[%clk 0:02:58]} 3. b4 {[%clk 0:03:00]}  e6 {[%clk 0:02:57]} 4. a3 {[%clk 0:02:59]}  Nf6 {[%clk 0:02:57]} 5. e3 {[%clk 0:02:56]}  c5 {[%clk 0:02:58]} 6. b5 {[%clk 0:02:52]}  b6 {[%clk 0:02:57]} 7. c4 {[%clk 0:02:51]}  Bb7 {[%clk 0:02:56]} 8. Nf3 {[%clk 0:02:52]}  d6 {[%clk 0:02:56]} 9. Be2 {[%clk 0:02:50]}  Be7 {[%clk 0:02:56]} 10. Nc3 {[%clk 0:02:49]}  d5 {[%clk 0:02:52]} 11. Nxa4 {[%clk 0:02:37]}  O-O {[%clk 0:02:50]} 12. d3 {[%clk 0:02:20]}  Nbd7 {[%clk 0:02:46]} 13. Nc3 {[%clk 0:02:17]}  Re8 {[%clk 0:02:46]} 14. Qc2 {[%clk 0:02:16]}  d4 {[%clk 0:02:40]} 15. exd4 {[%clk 0:02:03]}  cxd4 {[%clk 0:02:39]} 16. Nxd4 {[%clk 0:02:03]}  Ne5 {[%clk 0:02:38]} 17. Ne4 {[%clk 0:01:47]}  Nxe4 {[%clk 0:02:38]} 18. dxe4 {[%clk 0:01:47]}  Qc7 {[%clk 0:02:39]} 19. O-O {[%clk 0:01:39]}  Rac8 {[%clk 0:02:36]} 20. Rfc1 {[%clk 0:01:36]}  Bf6 {[%clk 0:02:35]} 21. a4 {[%clk 0:01:21]}  Red8 {[%clk 0:02:33]} 22. Nf3 {[%clk 0:01:12]}  Bxe4 {[%clk 0:02:23]} 23. Qb3 {[%clk 0:00:33]}  Bxf3 {[%clk 0:02:14]} 24. gxf3 {[%clk 0:00:31]}  Rd2 {[%clk 0:02:09]} 25. Rc2 {[%clk 0:00:21]}  Rxc2 {[%clk 0:02:07]} 26. Qxc2 {[%clk 0:00:21]}  Ng6 {[%clk 0:01:55]} 27. Bxf6 {[%clk 0:00:17]}  gxf6 {[%clk 0:01:56]} 28. a5 {[%clk 0:00:17]}  bxa5 {[%clk 0:01:56]} 29. Rb1 {[%clk 0:00:16]}  Qb6 {[%clk 0:01:54]} 30. Qe4 {[%clk 0:00:12]}  Rc5 {[%clk 0:01:53]} 31. Bf1 {[%clk 0:00:12]}  Rg5+ {[%clk 0:01:52]} 32. Kh1 {[%clk 0:00:12]}  Qxf2 {[%clk 0:01:52]} 33. Bh3 {[%clk 0:00:07]}  Ne5 {[%clk 0:01:49]} 34. Rf1 {[%clk 0:00:06]}  Qb2 {[%clk 0:01:16]} 35. f4 {[%clk 0:00:06]}  Ng4 {[%clk 0:01:15]} 36. fxg5 {[%clk 0:00:04]}  Qxh2# {[%clk 0:01:14]} 0-1


[Site "https://www.chess.com"]

[Event "Titled Tuesday Blitz May 23 Early 2023"]
[White "Tarasova, Viktoriya"]
[Black "Prohaszka, Peter"]
[WhiteFideId "4175840"]
[BlackFideId "726265"]
[WhiteElo "2182"]
[BlackElo "2626"]
[Result "0-1"]
[Round "04"]
[TimeControl "180+2"]
[Date "2023.05.23"]
[WhiteClock "0:00:05"]
[BlackClock "0:00:05"]

1. d4 {[%clk 0:03:00]}  d5 {[%clk 0:02:48]} 2. c4 {[%clk 0:03:00]}  c6 {[%clk 0:02:46]} 3. Nf3 {[%clk 0:03:00]}  Nf6 {[%clk 0:02:46]} 4. Nc3 {[%clk 0:03:00]}  dxc4 {[%clk 0:02:46]} 5. a4 {[%clk 0:03:00]}  Bf5 {[%clk 0:02:46]} 6. Ne5 {[%clk 0:03:00]}  Nbd7 {[%clk 0:02:46]} 7. Nxc4 {[%clk 0:03:00]}  Nb6 {[%clk 0:02:47]} 8. Ne5 {[%clk 0:02:59]}  a5 {[%clk 0:02:47]} 9. f3 {[%clk 0:02:50]}  Nfd7 {[%clk 0:02:47]} 10. Nxd7 {[%clk 0:02:49]}  Nxd7 {[%clk 0:02:39]} 11. e4 {[%clk 0:02:49]}  Bg6 {[%clk 0:02:39]} 12. Be2 {[%clk 0:02:48]}  e5 {[%clk 0:02:37]} 13. dxe5 {[%clk 0:02:44]}  Bb4 {[%clk 0:02:12]} 14. Be3 {[%clk 0:02:43]}  O-O {[%clk 0:02:05]} 15. O-O {[%clk 0:02:42]}  h6 {[%clk 0:01:43]} 16. Qc2 {[%clk 0:02:16]}  Nxe5 {[%clk 0:01:28]} 17. f4 {[%clk 0:02:15]}  Nd7 {[%clk 0:01:28]} 18. Rad1 {[%clk 0:01:57]}  Qe7 {[%clk 0:01:27]} 19. Bd3 {[%clk 0:01:38]}  Nc5 {[%clk 0:00:58]} 20. f5 {[%clk 0:01:35]}  Bh7 {[%clk 0:00:58]} 21. f6 {[%clk 0:01:34]}  gxf6 {[%clk 0:00:54]} 22. Bxh6 {[%clk 0:01:30]}  Rfd8 {[%clk 0:00:34]} 23. Rf3 {[%clk 0:01:09]}  Bg6 {[%clk 0:00:21]} 24. Rdf1 {[%clk 0:00:50]}  Nxd3 {[%clk 0:00:16]} 25. Rxd3 {[%clk 0:00:48]}  Qe5 {[%clk 0:00:15]} 26. Rdf3 {[%clk 0:00:40]}  Bxc3 {[%clk 0:00:09]} 27. Qxc3 {[%clk 0:00:18]}  Bxe4 {[%clk 0:00:08]} 28. Rxf6 {[%clk 0:00:14]}  Qxc3 {[%clk 0:00:07]} 29. bxc3 {[%clk 0:00:12]}  Rd7 {[%clk 0:00:06]} 30. h4 {[%clk 0:00:10]}  Re8 {[%clk 0:00:06]} 31. R6f4 {[%clk 0:00:09]}  Kh7 {[%clk 0:00:05]} 32. Bg5 {[%clk 0:00:07]}  f5 {[%clk 0:00:06]} 33. g4 {[%clk 0:00:06]}  fxg4 {[%clk 0:00:06]} 34. Rf7+ {[%clk 0:00:06]}  Rxf7 {[%clk 0:00:04]} 35. Rxf7+ {[%clk 0:00:07]}  Kg6 {[%clk 0:00:05]} 36. Rf6+ {[%clk 0:00:08]}  Kg7 {[%clk 0:00:05]} 37. Rd6 {[%clk 0:00:07]}  Bf5 {[%clk 0:00:04]} 38. Rd4 {[%clk 0:00:07]}  Be6 {[%clk 0:00:04]} 39. Kf2 {[%clk 0:00:07]}  Kg6 {[%clk 0:00:05]} 40. Kg3 {[%clk 0:00:07]}  Rf8 {[%clk 0:00:05]} 41. Rd6 {[%clk 0:00:07]}  Rf3+ {[%clk 0:00:05]} 42. Kg2 {[%clk 0:00:07]}  Kf5 {[%clk 0:00:06]} 43. Kg1 {[%clk 0:00:07]}  Rxc3 {[%clk 0:00:06]} 44. Rd1 {[%clk 0:00:06]}  Bd5 {[%clk 0:00:05]} 45. Rf1+ {[%clk 0:00:07]}  Bf3 {[%clk 0:00:06]} 46. Re1 {[%clk 0:00:07]}  Rc2 {[%clk 0:00:06]} 47. Re7 {[%clk 0:00:07]}  Rg2+ {[%clk 0:00:05]} 48. Kf1 {[%clk 0:00:08]}  Ra2 {[%clk 0:00:04]} 49. Rxb7 {[%clk 0:00:07]}  Rxa4 {[%clk 0:00:04]} 50. Rf7+ {[%clk 0:00:07]}  Ke6 {[%clk 0:00:04]} 51. Rf6+ {[%clk 0:00:08]}  Ke5 {[%clk 0:00:04]} 52. h5 {[%clk 0:00:07]}  Ra2 {[%clk 0:00:05]} 53. Rf8 {[%clk 0:00:07]}  Ra1+ {[%clk 0:00:04]} 54. Kf2 {[%clk 0:00:07]}  Rh1 {[%clk 0:00:05]} 55. h6 {[%clk 0:00:06]}  Rh2+ {[%clk 0:00:05]} 56. Kf1 {[%clk 0:00:06]}  Rh3 {[%clk 0:00:06]} 57. Rg8 {[%clk 0:00:05]}  g3 {[%clk 0:00:05]} 58. Kg1 {[%clk 0:00:05]}  Rh1# {[%clk 0:00:05]} 0-1


[Site "https://www.chess.com"]

[Event "Titled Tuesday Blitz May 23 Early 2023"]
[White "Filgueira, Hernan"]
[Black "Mazurkiewicz, Michal"]
[WhiteFideId "101770"]
[BlackFideId "1124943"]
[WhiteElo "2363"]
[BlackElo "2054"]
[Result "1-0"]
[Round "04"]
[TimeControl "180+2"]
[Date "2023.05.23"]
[WhiteClock "0:00:17"]
[BlackClock "0:00:01"]

1. c4 {[%clk 0:03:00]}  Nf6 {[%clk 0:02:59]} 2. Nc3 {[%clk 0:03:00]}  g6 {[%clk 0:02:59]} 3. g3 {[%clk 0:02:59]}  Bg7 {[%clk 0:02:59]} 4. Bg2 {[%clk 0:03:00]}  O-O {[%clk 0:03:00]} 5. Nf3 {[%clk 0:03:00]}  c5 {[%clk 0:03:00]} 6. O-O {[%clk 0:02:59]}  Nc6 {[%clk 0:03:01]} 7. d3 {[%clk 0:02:59]}  Rb8 {[%clk 0:03:01]} 8. Bf4 {[%clk 0:02:53]}  d6 {[%clk 0:03:00]} 9. Qd2 {[%clk 0:02:54]}  Re8 {[%clk 0:02:57]} 10. Bh6 {[%clk 0:02:53]}  Bh8 {[%clk 0:02:57]} 11. h3 {[%clk 0:02:53]}  a6 {[%clk 0:02:57]} 12. Ng5 {[%clk 0:02:44]}  Nd4 {[%clk 0:02:45]} 13. e4 {[%clk 0:02:36]}  b5 {[%clk 0:02:41]} 14. b3 {[%clk 0:02:34]}  b4 {[%clk 0:02:38]} 15. Ne2 {[%clk 0:02:30]}  Nxe2+ {[%clk 0:01:36]} 16. Qxe2 {[%clk 0:02:29]}  Nd7 {[%clk 0:01:08]} 17. Rad1 {[%clk 0:02:26]}  f6 {[%clk 0:01:04]} 18. Ne6 {[%clk 0:02:18]}  Qa5 {[%clk 0:00:59]} 19. f4 {[%clk 0:02:11]}  Ne5 {[%clk 0:00:55]} 20. fxe5 {[%clk 0:00:52]}  Bxe6 {[%clk 0:00:54]} 21. exd6 {[%clk 0:00:50]}  exd6 {[%clk 0:00:55]} 22. Bf4 {[%clk 0:00:47]}  Rbd8 {[%clk 0:00:55]} 23. g4 {[%clk 0:00:45]}  Bg7 {[%clk 0:00:31]} 24. Rf3 {[%clk 0:00:43]}  d5 {[%clk 0:00:30]} 25. cxd5 {[%clk 0:00:41]}  Bxd5 {[%clk 0:00:30]} 26. Rdf1 {[%clk 0:00:36]}  f5 {[%clk 0:00:28]} 27. gxf5 {[%clk 0:00:34]}  gxf5 {[%clk 0:00:28]} 28. Rg3 {[%clk 0:00:35]}  Kh8 {[%clk 0:00:19]} 29. Rxg7 {[%clk 0:00:22]}  Kxg7 {[%clk 0:00:19]} 30. Qb2+ {[%clk 0:00:22]}  Kg6 {[%clk 0:00:13]} 31. exd5 {[%clk 0:00:22]}  Rg8 {[%clk 0:00:06]} 32. Re1 {[%clk 0:00:20]}  Qb5 {[%clk 0:00:02]} 33. Re6+ {[%clk 0:00:18]}  Kf7 {[%clk 0:00:01]} 34. Qf6# {[%clk 0:00:17]} 1-0


[Site "https://www.chess.com"]

[Event "Titled Tuesday Blitz May 23 Early 2023"]
[White "HamedWafa4"]
[Black "Urquhart, Ed"]
[BlackFideId "2603748"]
[WhiteElo "2592"]
[BlackElo "2184"]
[Result "1-0"]
[Round "04"]
[TimeControl "180+2"]
[Date "2023.05.23"]
[WhiteClock "0:00:22"]
[BlackClock "0:00:00"]

1. e4 {[%clk 0:03:00]}  c5 {[%clk 0:02:59]} 2. Nf3 {[%clk 0:02:59]}  e6 {[%clk 0:03:00]} 3. d3 {[%clk 0:02:55]}  Nc6 {[%clk 0:02:59]} 4. Nbd2 {[%clk 0:02:56]}  Nge7 {[%clk 0:02:56]} 5. g3 {[%clk 0:02:56]}  d5 {[%clk 0:02:56]} 6. Bg2 {[%clk 0:02:55]}  g6 {[%clk 0:02:56]} 7. O-O {[%clk 0:02:54]}  Bg7 {[%clk 0:02:57]} 8. Re1 {[%clk 0:02:54]}  O-O {[%clk 0:02:57]} 9. h4 {[%clk 0:02:52]}  b5 {[%clk 0:02:54]} 10. h5 {[%clk 0:02:51]}  b4 {[%clk 0:02:51]} 11. Nf1 {[%clk 0:02:51]}  a5 {[%clk 0:02:50]} 12. e5 {[%clk 0:02:48]}  a4 {[%clk 0:02:50]} 13. N1h2 {[%clk 0:02:46]}  Bb7 {[%clk 0:02:44]} 14. Bg5 {[%clk 0:02:39]}  Qd7 {[%clk 0:02:43]} 15. Ng4 {[%clk 0:02:37]}  Rfc8 {[%clk 0:01:13]} 16. Qd2 {[%clk 0:02:20]}  Qc7 {[%clk 0:01:08]} 17. Nf6+ {[%clk 0:02:15]}  Kh8 {[%clk 0:01:08]} 18. Bh6 {[%clk 0:02:13]}  Nf5 {[%clk 0:01:02]} 19. Bxg7+ {[%clk 0:02:11]}  Kxg7 {[%clk 0:01:03]} 20. g4 {[%clk 0:01:38]}  Nfd4 {[%clk 0:01:03]} 21. Nxd4 {[%clk 0:01:12]}  cxd4 {[%clk 0:00:57]} 22. Qg5 {[%clk 0:01:00]}  h6 {[%clk 0:00:54]} 23. Qf4 {[%clk 0:00:53]}  g5 {[%clk 0:00:54]} 24. Qg3 {[%clk 0:00:53]}  Nxe5 {[%clk 0:00:43]} 25. Rxe5 {[%clk 0:00:35]}  Kxf6 {[%clk 0:00:43]} 26. f4 {[%clk 0:00:35]}  Qxc2 {[%clk 0:00:19]} 27. Rf1 {[%clk 0:00:30]}  Ke7 {[%clk 0:00:15]} 28. fxg5 {[%clk 0:00:27]}  hxg5 {[%clk 0:00:15]} 29. Rxg5 {[%clk 0:00:27]}  Rg8 {[%clk 0:00:15]} 30. Qe5 {[%clk 0:00:27]}  Rxg5 {[%clk 0:00:14]} 31. Qxg5+ {[%clk 0:00:26]}  Kd7 {[%clk 0:00:15]} 32. Rxf7+ {[%clk 0:00:25]}  Kc6 {[%clk 0:00:14]} 33. Qe7 {[%clk 0:00:25]}  Rb8 {[%clk 0:00:00]} 34. Qc7+ {[%clk 0:00:22]} 1-0


[Site "https://www.chess.com"]

[Event "Titled Tuesday Blitz May 23 Early 2023"]
[White "Nikologorskiy, Konstantin"]
[Black "Goswami, Vedant"]
[WhiteFideId "24111708"]
[BlackFideId "5003725"]
[WhiteElo "2273"]
[BlackElo "2011"]
[Result "1-0"]
[Round "04"]
[TimeControl "180+2"]
[Date "2023.05.23"]
[WhiteClock "0:01:31"]
[BlackClock "0:00:11"]

1. d4 {[%clk 0:02:57]}  d6 {[%clk 0:02:58]} 2. Nf3 {[%clk 0:02:56]}  g6 {[%clk 0:02:57]} 3. c4 {[%clk 0:02:56]}  Bg7 {[%clk 0:02:55]} 4. Nc3 {[%clk 0:02:57]}  Bg4 {[%clk 0:02:49]} 5. e4 {[%clk 0:02:54]}  Nc6 {[%clk 0:02:47]} 6. d5 {[%clk 0:02:54]}  Nd4 {[%clk 0:02:44]} 7. Be2 {[%clk 0:02:51]}  Bxf3 {[%clk 0:02:42]} 8. Bxf3 {[%clk 0:02:51]}  e5 {[%clk 0:02:34]} 9. dxe6 {[%clk 0:02:48]}  fxe6 {[%clk 0:02:34]} 10. O-O {[%clk 0:02:47]}  Ne7 {[%clk 0:02:28]} 11. Be3 {[%clk 0:02:44]}  c5 {[%clk 0:02:15]} 12. Bg4 {[%clk 0:02:32]}  Qd7 {[%clk 0:02:08]} 13. Bxd4 {[%clk 0:02:29]}  cxd4 {[%clk 0:02:02]} 14. Ne2 {[%clk 0:02:29]}  Nc6 {[%clk 0:01:58]} 15. Nf4 {[%clk 0:02:27]}  Nd8 {[%clk 0:01:53]} 16. Ne2 {[%clk 0:01:49]}  Nc6 {[%clk 0:01:48]} 17. b4 {[%clk 0:01:49]}  d3 {[%clk 0:01:28]} 18. Qxd3 {[%clk 0:01:46]}  Bxa1 {[%clk 0:01:28]} 19. Rxa1 {[%clk 0:01:47]}  Ne5 {[%clk 0:01:26]} 20. Qh3 {[%clk 0:01:41]}  Nxg4 {[%clk 0:01:24]} 21. Qxg4 {[%clk 0:01:42]}  O-O {[%clk 0:01:22]} 22. Nd4 {[%clk 0:01:38]}  Rae8 {[%clk 0:01:19]} 23. Nf3 {[%clk 0:01:37]}  Qf7 {[%clk 0:00:49]} 24. Rd1 {[%clk 0:01:35]}  Qf4 {[%clk 0:00:42]} 25. Qh3 {[%clk 0:01:32]}  Qxe4 {[%clk 0:00:11]} 26. Ng5 {[%clk 0:01:31]} 1-0


[Site "https://www.chess.com"]